Cogmind - Beta 13 @@@ ROGUE MODE // 2024.05.30 @ 19:35:02 Player: Bace Troncons Result: Destroyed by 3M-CW1(R) with Subdweller Machine Gun Performance ------------- Evolutions (0) 0 Regions Visited (2) 400 Robots Destroyed (34) 170 Value Destroyed (768) 768 Prototype IDs (2) 40 Alien Tech Used (0) 0 Bonus (12) 12 TOTAL SCORE: 1390 Bonus ------- High Alert Combat Kills 12 Cogmind --------- Core Integrity 0/250 Matter 204/300 Energy 247/250 System Corruption 0% Temperature Cool (0) Movement Core (250) Ox4 Location -10/Subcaves Parts ------- > --- POWER (1) -------- Ion Engine > --- PROPULSION (2) --- (None) > --- UTILITY (2) ------ Small Storage Unit Core Shielding > --- WEAPON (2) ------- Battle Rifle Makeshift Shrapnel Gun > --- INVENTORY (8) ---- Structural Scanner Sensor Array Core Shielding Hacking Suite Hacking Suite Makeshift Hacking Suite Subdweller Shrapnel Launcher Multitool Peak State ------------ > --- POWER ------------ Subdweller Power Source > --- PROPULSION ------- (None) > --- UTILITY ---------- Small Storage Unit Core Shielding > --- WEAPON ----------- Battle Rifle Makeshift Shrapnel Gun > --- INVENTORY -------- Ion Engine Structural Scanner Sensor Array Core Shielding Hacking Suite Hacking Suite Makeshift Hacking Suite Grenade Launcher [Rating: 11] Favorites ----------- Power Ion Engine Engine Ion Engine Propulsion Light Treads Treads Light Treads Utility Small Storage Unit Storage Small Storage Unit Processor Transport Network Coupler Protection Core Shielding Weapon Light Assault Rifle Ballistic Gun Light Assault Rifle Ballistic Cannon Light Cannon Launcher Grenade Launcher Build | -11 -10 -10 ------- Run | Yrd Mat Sub Slots Evolved . | . . . Power . | . . . Propulsion . | . . . Utility . | . . . Weapon . | . . . Parts Attached 26 | 6 10 10 Power 4 | 1 1 2 Engine 4 | 1 1 2 Core . | . . . Reactor . | . . . Propulsion 4 | 2 2 . Treads 4 | 2 2 . Leg . | . . . Wheel . | . . . Hover . | . . . Flight . | . . . Utility 4 | 1 2 1 Device . | . . . Storage 1 | 1 . . Processor 1 | . 1 . Hackware . | . . . Protection 2 | . 1 1 Artifact . | . . . Weapon 14 | 2 5 7 Energy Gun . | . . . Energy Cannon . | . . . Ballistic Gun 10 | 2 3 5 Ballistic Cannon 1 | . 1 . Launcher 3 | . 1 2 Special Weapon . | . . . Impact Weapon . | . . . Slashing Weapon . | . . . Piercing Weapon . | . . . Special Melee Weapon . | . . . Unidentified Prototypes . | . . . Parts Lost 5 | . 4 1 Power 1 | . 1 . Propulsion 3 | . 2 1 Utility . | . . . Weapon 1 | . 1 . Highest Loss Streak 2 | . 2 1 To Critical Strikes . | . . . Average Slot Usage (%) 82 | . 88 71 Engine 13 | . 13 14 Treads 13 | . 20 . Storage 14 | . 14 14 Processor 1 | . 1 . Protection 11 | . 10 14 Ballistic Gun 21 | . 20 23 Ballistic Cannon 5 | . 6 2 Naked Turns . | . . . Heaviest Build 21 | 11 16 21 Greatest Support 40 | 40 40 20 Greatest Overweight (x) 6 | 3 . 6 Average Overweight (x) 1 | . . 3 Largest Inventory Capacity 8 | 8 8 8 Average Capacity 7 | 7 8 8 Most Carried 8 | 4 8 8 Average Carried 7 | 3 7 7 Final Capacity 8 | 8 8 8 Final Carried 8 | 4 8 8 Class Distribution -------------------- 91% | Mutant 8% | Scavenger-Mutant Dominant Class ---------------- Mutant | -10/Materials Mutant | -10/Subcaves Resources | -11 -10 -10 ----------- Run | Yrd Mat Sub Matter Collected 856 | 197 402 257 Remotely . | . . . Salvage Created 927 | . 658 269 Parts 81 | . 57 24 Haulers Intercepted 2 | . 2 . Recyclers Shooed 1 | . 1 . Parts Field Recycled . | . . . Retrieved Matter . | . . . Parts Self-Destructed 6 | . . 6 Prevented . | . . . Kills | -11 -10 -10 ------- Run | Yrd Mat Sub Combat Hostiles Destroyed 25 | . 17 8 Guns 21 | . 17 4 Cannons 2 | . . 2 AOE 2 | . . 2 Classes Destroyed 7 | . 6 1 Worker 2 | . 2 . Hauler 2 | . 2 . Operator 2 | . 2 . Watcher 3 | . 3 . Swarmer 9 | . 9 . Grunt 8 | . 8 . Subdweller 8 | . . 8 Best Kill Streak 4 | . 4 2 Combat Bots Only 4 | . 4 2 Max Kills in Single Turn 2 | . 2 1 Gunslinging 1 | . 1 . Exploded 1 | . . 1 Melee . | . . . Uniques/NPCs Destroyed . | . . . Combat | -11 -10 -10 -------- Run | Yrd Mat Sub Hostile Shots Fired 132 | . 102 30 Missed 32 | . 24 8 Damage Taken 1211 | . 732 479 Core 254 | . 140 114 Absorbed by Shields . | . . . Redirected to Shielding 35 | . 9 26 Core Remaining (%) 100 | 100 . . Volleys Fired 126 | . 92 34 Largest 2 | . 2 2 Hottest 55 | . 55 55 Shots Fired 223 | . 160 63 Gun 210 | . 157 53 Cannon 8 | . 2 6 Launcher 5 | . 1 4 Special . | . . . Kinetic 219 | . 159 60 Thermal . | . . . Explosive 4 | . 1 3 Electromagnetic . | . . . Robot Hit Streak 17 | . 17 17 Robot Miss Streak 4 | . 4 1 Penetration Max . | . . . Secondary Targets 1 | . 1 . Max Gunslinging Chain 1 | . 1 . Shots Hit Robots 135 | . 103 32 Core Hits 57 | . 44 13 Critical Kills 1 | . 1 . Critical Parts Destroyed 1 | . 1 . Critical Strikes 2 | . 2 . Destroy 2 | . 2 . Melee Attacks . | . . . Impact . | . . . Slashing . | . . . Piercing . | . . . Sneak Attacks . | . . . Combat Hostiles . | . . . Follow-up Attacks . | . . . Damage Inflicted 1626 | . 1006 620 Guns 1429 | . 988 441 Cannons 100 | . 18 82 Explosions 97 | . . 97 Melee . | . . . Ramming . | . . . Kinetic 1588 | . 1006 582 Thermal . | . . . Explosive 38 | . . 38 Electromagnetic . | . . . Impact . | . . . Slashing . | . . . Piercing . | . . . Highest Corruption . | . . . Average Corruption . | . . . Corruption Purged . | . . . Corruption Blocked . | . . . Overload Shots . | . . . Overflow Damage . | . . . Projectiles . | . . . Explosions . | . . . Melee . | . . . Knockbacks 2 | . 1 1 Impact . | . . . Kinetic 2 | . 1 1 Secondary . | . . . Self-Inflicted Damage 36 | . . 36 Shots 2 | . . 2 Rammed . | . . . Targets Rammed . | . . . Kicked . | . . . Crushed . | . . . Highest Temperature 14 | . 14 . Average Temperature 6 | . 6 . Received Heat Transfer 210 | . 198 12 Siege Activations . | . . . Robots Corrupted . | . . . Combat Hostiles . | . . . Parts Fried . | . . . Impact Corruptions . | . . . Robots Melted . | . . . Combat Hostiles . | . . . Parts Melted . | . . . Heat Transferred . | . . . Parts Sabotaged . | . . . Parts Stolen . | . . . Parts Stripped . | . . . Power Chain Reactions . | . . . Alert | -11 -10 -10 ------- Run | Yrd Mat Sub Peak Influence 501 | . 501 . Initial . | . . . Average 213 | . 219 . Maximum Alert Level 2 | . 2 . Low Security (%) 43 | 100 42 . Level 1 50 | . 52 . Level 2 5 | . 5 . Level 3 . | . . . Level 4 . | . . . Level 5 . | . . . High Security . | . . . Max Security . | . . . Squads Dispatched 3 | . 3 . Investigation 1 | . 1 . Extermination . | . . . Reinforcement 2 | . 2 . Assault . | . . . Garrison . | . . . Intercept . | . . . Searches Triggered . | . . . Construction Impeded . | . . . Haulers Reinforced . | . . . Active Scanning Responses . | . . . Cargo Convoy Interrupts . | . . . Stealth | -11 -10 -10 --------- Run | Yrd Mat Sub Distress Signals 4 | . 4 . Communications Jammed . | . . . Distress Signals . | . . . Times Spotted 42 | . 33 9 Peak Tracking Total 5 | . 5 2 Tactical Retreats 3 | . 3 . Traps | -11 -10 -10 ------- Run | Yrd Mat Sub Traps Triggered . | . . . Indirectly . | . . . Trap Hack Attempts . | . . . Triggered . | . . . Disarmed . | . . . Reprogrammed . | . . . Reused . | . . . Traps Extracted . | . . . Installed . | . . . Triggered . | . . . Machines | -11 -10 -10 ---------- Run | Yrd Mat Sub Machines Disabled . | . . . Max in Single Turn . | . . . Machines Repaired . | . . . Machines Dismantled . | . . . Machines Sabotaged . | . . . Overloaded Fab Kills . | . . . Hacking | -11 -10 -10 --------- Run | Yrd Mat Sub Machines Accessed 5 | . 5 . Terminals 4 | . 4 . Fabricators . | . . . Repair Stations . | . . . Recycling Units 1 | . 1 . Scanalyzers . | . . . Garrison Access . | . . . Total Hacks 11 | . 11 . Successful 3 | . 3 . Failed 8 | . 8 . Catastrophic 2 | . 2 . Database Lockouts . | . . . Manual 1 | . 1 . Terminals 8 | . 8 . Fabricators . | . . . Repair Stations . | . . . Recycling Units 3 | . 3 . Scanalyzers . | . . . Garrison Access . | . . . Terminal Hacks 3 | . 3 . Prototype ID Bank 1 | . 1 . Locate Traps 1 | . 1 . Registered Components 1 | . 1 . Fabricator Hacks . | . . . Repair Station Hacks . | . . . Recycling Unit Hacks . | . . . Scanalyzer . | . . . Garrison Access Hacks . | . . . Unauthorized Hacks . | . . . Terminals . | . . . Fabricators . | . . . Repair Stations . | . . . Recycling Units . | . . . Scanalyzers . | . . . Garrison Access . | . . . Data Cores Recovered . | . . . Used . | . . . Hacking Detections 4 | . 4 . Full Trace Events 1 | . 1 . Feedback Events . | . . . Feedback Blocked . | . . . Robot Schematics Acquired . | . . . Robots Built . | . . . Authchips . | . . . Time . | . . . Total Robot Build Rating . | . . . Part Schematics Acquired . | . . . Parts Built . | . . . Authchips . | . . . Time . | . . . Total Part Build Rating . | . . . Parts Repaired . | . . . Time . | . . . Parts Recycled . | . . . Recycled Matter . | . . . Retrieved Matter . | . . . Retrieved Components . | . . . Parts Scanalyzed . | . . . Part Schematics Acquired . | . . . Parts Damaged . | . . . Bothacking | -11 -10 -10 ------------ Run | Yrd Mat Sub Used RIF Installer . | . . . Robots Hacked . | . . . Non-combat . | . . . Combat . | . . . Robot Hacks Applied . | . . . Relay Couplers Released . | . . . Fabnet Peak Effective % . | . . . Robots Rewired . | . . . Allies Hacked . | . . . Hacks Repelled . | . . . Allies | -11 -10 -10 -------- Run | Yrd Mat Sub Total Allies . | . . . Largest Group . | . . . Highest-Rated Group . | . . . Highest-Rated Ally . | . . . Total Orders . | . . . Ally Attacks . | . . . Total Damage . | . . . Kills . | . . . Allies Corrupted . | . . . Allies Melted . | . . . Intel | -11 -10 -10 ------- Run | Yrd Mat Sub Robot Analysis Total . | . . . Derelict Logs Recovered 1 | . . 1 Drone Launches . | . . . Drone Recoveries . | . . . Exploration | -11 -10 -10 ------------- Run | Yrd Mat Sub Turns Passed 4052 | 72 2495 1485 Spaces Moved 1131 | 38 583 510 Core 465 | 12 . 453 Treads 666 | 26 583 57 Legs . | . . . Wheels . | . . . Hover . | . . . Flight . | . . . Fastest Speed 50 | 50 160 160 Average Speed 205 | 159 160 261 Slowest Speed 350 | 200 160 350 Overloaded Moves . | . . . Propulsion Burnouts . | . . . Robots Hopped . | . . . Cave-ins Triggered . | . . . Exploration Rate (%) 43 | 4 92 35 Regions Visited 2 Branch Regions 1 Pre-discovered Areas . | . . . Known Exits Taken . | . . . Unknown Exits Taken 2 | 1 1 . Scrap Searched . | . . . Spaces Dug 5 | . . 5 Terrain Destroyed 30 | . 5 25 Melee . | . . . Projectile . | . . . AOE 30 | . 5 25 Terrain Rammed . | . . . Walls Destroyed . | . . . Machines Disabled . | . . . Actions | -11 -10 -10 --------- Run | Yrd Mat Sub Total 2663 | 47 2010 606 Wait 1342 | . 1302 40 Move 1129 | 37 582 510 Hop . | . . . Pick Up 20 | 4 13 3 Fast Attach 12 | 6 4 2 Attach 3 | . 2 1 Detach 1 | . 1 . Swap 11 | . 4 7 Drop 19 | . 10 9 Fire 126 | . 92 34 Melee . | . . . Ram . | . . . Kick . | . . . Crush . | . . . Escape Stasis . | . . . Rewire . | . . . Trap . | . . . Miscellaneous . | . . . Route ------- -11/Scrapyard -10/Materials (discovered 5 exits: [*Mat x2] / [*Min x2] / [*Sub]) -10/Subcaves History --------- Turn | Location | Event 15 | -11/Scrapyard | Discovered new exit (range 16) 73 | -11/Scrapyard | Entered Materials 302 | -10/Materials | Build established: Mutant 528 | -10/Materials | Discovered new exit (range 11) 786 | -10/Materials | Core integrity fell below 50% 915 | -10/Materials | Discovered new exit (range 10) 1070 | -10/Materials | Discovered new exit (range 7) 1150 | -10/Materials | Discovered new exit (range 13) 1308 | -10/Materials | Build established: Scavenger-Mutant 1641 | -10/Materials | Build established: Mutant 2537 | -10/Materials | Discovered new exit (range 7) 2568 | -10/Materials | Entered Subcaves 2575 | -10/Subcaves | Learned Materials stockpile data 2759 | -10/Subcaves | Shifting Twisted Machinery released Sub. Power Source 2831 | -10/Subcaves | Shifting Twisted Machinery released Battle Rifle 3117 | -10/Subcaves | Shifting Twisted Machinery released Sub. Shrapnel Launcher 3500 | -10/Subcaves | Shifting Twisted Machinery released Sub. Laser 4035 | -10/Subcaves | Core integrity fell below 20% 4053 | -10/Subcaves | Destroyed by 3M-CW1(R) with Subdweller Machine Gun Last Messages --------------- 03467_ The unstable cave ceiling collapses. 03479_ TA-5O2(R) destroyed. 03490_ Acquired 33 matter. Sub. Laser falls loose from the Twisted Machinery. 03508_ Dropped Grenade Launcher. 03509_ Acquired Sub. Shrapnel Launcher. 03515_ Subatomizers dissect the Sub. Power Source. 03524_ JY-866(R) destroyed. 03532_ The unstable cave ceiling collapses. 03599_ Acquired 17 matter. 03604_ Acquired 9 matter. 03605_ Sub. Power Source shoots sparks and powers down. 03622_ Acquired 14 matter. 03624_ Dropped Broken Sub. Power Source. 03645_ Acquired Multitool. 03693_ Acquired 39 matter. 04038_ 7U-1EO(R) destroyed. Map ----- +----------------------------------------------------+ | ?????????????????????????????????????????????????? | | ?????????????????????????????????????????????????? | | ?????????????????????????????????????????????????? | | ?????????????????????????????????????????????????? | | ?????????????????????????????????????????????????? | | ?????????????????????????????????????????????????? | | ?????????????????????????????????????????????????? | | ?????????????????????????????????????????????????? | | ????????? ?????????????????????????????????????? | | ???????? " ?????????????????????????????????????? | | ?????????" ?????????????????????????????????????? | | ?????????# ?????????????????????????????????????? | | ?????????# ???????????????##????????????????????? | | ???????### ??#####??????## ##???????????????????? | | ???????# ### ##?????# #???????????????????? | | ???????# ##??### #????????????????????? | | ????????# #### #?????????????????????? | | ????????# ##????????????????????? | | ####????# ##???????????????????? | | ##????# ##??????????????????? | | ###??# # # #??????????????????? | | ##### ########## ##?###?????????????? | | #### ### #???????# ## #?????????????? | | ##??## ##???????## #?????????????? | | ?????# ##?????????# #?????????????? | | ?????# ##??????????#@ #?????????????? | | ###### ### #???????????##R ##?????????????? | | # # #?###????????????# #### #??????????????? | | #????????????????# ####?#??????????????? | | #???????????????##*[ ##???????????????? | | ## ######?? ###""%= ###?????????????? | | ### ##????# ""& #???????????? | | #### #????# """ ##???????????? | | #### ## ##????# """"" ####????????????? | | ??# #?#####?????# ""### ##???????????????? | | ### #??????????# "??? #????????????????? | | # #?????????# """"??? #???????????????? | | ##????????? ????????? #???????????????? | | ##?????????? ?????????? ##???????????????? | | #???????????????????????? ##????????????????? | | #????????????????????????##?????????????????? | | #???????????????????????????????????????????? | | ##???????????????????????????????????????????? | | # #????????????????????????????????????????????? | | # #????????????????????????????????????????????? | | #????????????????????????????????????????????? | | ####????????????????????????????????????????????? | | ##???????????????????????????????????????????????? | | ?????????????????????????????????????????????????? | | ?????????????????????????????????????????????????? | +----------------------------------------------------+ Best States ------------- Heat Dissipation 25 Energy Generation 15 Energy Capacity 250 Matter Stores 300 Matter Capacity 300 Sight Range 16 Terrain Scan Density 10 Core Shielding 20 Evasion (%) 40 Recoil Reduction 2 Item Schematics ----------------- None Robot Schematics ------------------ None Fabricated ------------ Nothing Alien Tech Used ----------------- None Achievements -------------- None Challenges ------------ None Game ------ Seed BarrageLobotomyPod Manual? 0 Play Time 00:17:36 Cumulative 94.3 hours Start 2024.05.30 @ 19:19:44 End 2024.05.30 @ 19:35:02 Sessions 1 Manual Loads 0 Difficulty Rogue Special Mode None Game No. 159 Rogue 159 Adventurer 0 Explorer 0 Win Type - Total 1 Types 1/0/0/0/0/0/0/0/0 Lore% 42 Gallery% 46 Achievement% 33 Wizard Run 0 Options --------- Layout 1 ASCII 0 Keyboard 1 Movement Numpad Keybinds 0 Fullscreen 1 Font 24/Smallcaps Map View 50x35 Zoom Use 0% Tactical HUD 1 Map Filters NONE Filters NONE Steam 1 RUN: d4ec50c5-5ddb-4903-98ce-d893bcdbbe8c